Cogmind - Beta 13 @@@ ROGUE MODE // 2024.07.10 @ 07:02:50 Player: Vadymaus Result: Destroyed by G-47 Trooper with Particle Gun Performance ------------- Evolutions (0) 0 Regions Visited (2) 400 Robots Destroyed (24) 120 Value Destroyed (667) 667 Prototype IDs (0) 0 Alien Tech Used (0) 0 Bonus (0) 0 TOTAL SCORE: 1187 Bonus ------- None Cogmind --------- Core Integrity 0/250 Matter 293/300 Energy 100/100 System Corruption 0% Temperature Cool (9) Movement Core (700) Ox13 Location -10/Mines Parts ------- > --- POWER (1) -------- (None) > --- PROPULSION (2) --- (None) > --- UTILITY (2) ------ High-capacity Storage Unit Transport Network Coupler > --- WEAPON (2) ------- Light Assault Rifle Light Assault Rifle > --- INVENTORY (20) --- Light Ion Engine Light Nuclear Core Light Nuclear Core Light Treads Light Treads Improved Heat Sink Large Storage Unit High-capacity Matter Pod (200) High-capacity Matter Pod (200) Structural Scanner Light Armor Plating Assault Rifle Light Assault Rifle Light Cannon Light Cannon Grenade Launcher Peak State ------------ > --- POWER ------------ Light Nuclear Core > --- PROPULSION ------- Light Treads Light Treads > --- UTILITY ---------- High-capacity Storage Unit Transport Network Coupler > --- WEAPON ----------- Assault Rifle Light Assault Rifle > --- INVENTORY -------- Light Ion Engine Light Nuclear Core Light Treads Light Treads Improved Heat Sink Large Storage Unit High-capacity Matter Pod High-capacity Matter Pod Structural Scanner Light Armor Plating Assault Rifle Light Assault Rifle Light Assault Rifle Light Cannon Light Cannon Grenade Launcher [Rating: 11] Favorites ----------- Power Light Ion Engine Engine Light Ion Engine Power Core Light Nuclear Core Propulsion Light Treads Treads Light Treads Utility Transport Network Coupler Storage High-capacity Storage Unit Processor Transport Network Coupler Weapon Light Assault Rifle Energy Gun Particle Gun Ballistic Gun Light Assault Rifle Build | -11 -10 -10 ------- Run | Yrd Mat Min Slots Evolved . | . . . Power . | . . . Propulsion . | . . . Utility . | . . . Weapon . | . . . Parts Attached 16 | 6 6 4 Power 2 | 1 . 1 Engine 1 | 1 . . Core 1 | . . 1 Reactor . | . . . Propulsion 4 | 2 2 . Treads 4 | 2 2 . Leg . | . . . Wheel . | . . . Hover . | . . . Flight . | . . . Utility 4 | 1 2 1 Device . | . . . Storage 3 | 1 1 1 Processor 1 | . 1 . Hackware . | . . . Protection . | . . . Artifact . | . . . Weapon 6 | 2 2 2 Energy Gun 2 | 1 1 . Energy Cannon . | . . . Ballistic Gun 4 | 1 1 2 Ballistic Cannon . | . . . Launcher . | . . . Special Weapon . | . . . Impact Weapon . | . . . Slashing Weapon . | . . . Piercing Weapon . | . . . Special Melee Weapon . | . . . Unidentified Prototypes . | . . . Parts Lost 5 | . . 5 Power 1 | . . 1 Propulsion 2 | . . 2 Utility . | . . . Weapon 2 | . . 2 Highest Loss Streak 3 | . . 3 To Critical Strikes . | . . . Average Slot Usage (%) 97 | . 95 99 Engine 7 | . 14 . Core 6 | . . 13 Treads 27 | . 28 27 Storage 14 | . 14 14 Processor 12 | . 10 14 Energy Gun 5 | . 10 . Ballistic Gun 22 | . 17 28 Naked Turns . | . . . Heaviest Build 48 | 12 28 48 Greatest Support 40 | 40 40 40 Greatest Overweight (x) 1 | . . 1 Average Overweight (x) . | . . . Largest Inventory Capacity 20 | 8 15 20 Average Capacity 14 | 6 10 19 Most Carried 16 | 1 15 16 Average Carried 11 | . 8 15 Final Capacity 20 | 8 15 20 Final Carried 16 | 1 15 16 Class Distribution -------------------- 100% | Mutant Dominant Class ---------------- Mutant | -10/Materials Mutant | -10/Mines Resources | -11 -10 -10 ----------- Run | Yrd Mat Min Matter Collected 1104 | 269 573 262 Remotely . | . . . Salvage Created 909 | 57 430 422 Parts 51 | . 22 29 Haulers Intercepted 2 | . 2 . Recyclers Shooed . | . . . Parts Field Recycled . | . . . Retrieved Matter . | . . . Parts Self-Destructed . | . . . Prevented . | . . . Kills | -11 -10 -10 ------- Run | Yrd Mat Min Combat Hostiles Destroyed 19 | . 7 12 Guns 18 | . 6 12 Classes Destroyed 6 | 1 3 2 Worker 1 | . 1 . Tunneler 1 | . . 1 Hauler 2 | . 2 . Recycler 1 | 1 . . Swarmer 3 | . . 3 Grunt 16 | . 7 9 Best Kill Streak 4 | 1 3 4 Combat Bots Only 4 | . 3 4 Max Kills in Single Turn 1 | 1 1 1 Gunslinging . | . . . Exploded . | . . . Melee . | . . . Uniques/NPCs Destroyed . | . . . Combat | -11 -10 -10 -------- Run | Yrd Mat Min Hostile Shots Fired 94 | . 24 70 Missed 23 | . 10 13 Damage Taken 928 | . 202 726 Core 265 | . 33 232 Absorbed by Shields . | . . . Core Remaining (%) 100 | 100 . . Volleys Fired 83 | 6 28 49 Largest 2 | 2 2 2 Hottest 85 | 70 85 40 Shots Fired 163 | 12 55 96 Gun 163 | 12 55 96 Cannon . | . . . Launcher . | . . . Special . | . . . Kinetic 133 | 6 31 96 Thermal 30 | 6 24 . Explosive . | . . . Electromagnetic . | . . . Robot Hit Streak 9 | 6 6 9 Robot Miss Streak 4 | 2 2 4 Penetration Max . | . . . Secondary Targets 3 | . . 3 Max Gunslinging Chain 1 | . . 1 Shots Hit Robots 109 | 9 32 68 Core Hits 49 | 2 16 31 Critical Kills . | . . . Critical Parts Destroyed 1 | . . 1 Critical Strikes 6 | . 5 1 Burn 5 | . 5 . Destroy 1 | . . 1 Melee Attacks . | . . . Impact . | . . . Slashing . | . . . Piercing . | . . . Sneak Attacks . | . . . Combat Hostiles . | . . . Follow-up Attacks . | . . . Damage Inflicted 1183 | 105 457 621 Guns 1169 | 105 457 607 Cannons . | . . . Explosions . | . . . Melee . | . . . Ramming 14 | . . 14 Kinetic 869 | 43 219 607 Thermal 300 | 62 238 . Explosive . | . . . Electromagnetic . | . . . Impact . | . . . Slashing . | . . . Piercing . | . . . Highest Corruption . | . . . Average Corruption . | . . . Corruption Purged . | . . . Corruption Blocked . | . . . Overload Shots . | . . . Overflow Damage . | . . . Projectiles . | . . . Explosions . | . . . Melee . | . . . Knockbacks 1 | . . 1 Impact 1 | . . 1 Kinetic . | . . . Secondary . | . . . Self-Inflicted Damage . | . . . Shots . | . . . Rammed 1 | . . 1 Targets Rammed 1 | . . 1 Kicked . | . . . Crushed . | . . . Highest Temperature 171 | 27 171 46 Average Temperature 34 | 11 59 13 Received Heat Transfer 528 | . 117 411 Siege Activations . | . . . Robots Corrupted . | . . . Combat Hostiles . | . . . Parts Fried . | . . . Impact Corruptions . | . . . Robots Melted 1 | . 1 . Combat Hostiles 1 | . 1 . Parts Melted 3 | . 3 . Heat Transferred 1147 | 185 962 . Parts Sabotaged . | . . . Parts Stolen . | . . . Parts Stripped . | . . . Power Chain Reactions . | . . . Alert | -11 -10 -10 ------- Run | Yrd Mat Min Peak Influence 207 | 5 207 97 Initial 3 | . 3 2 Average 51 | 1 57 50 Maximum Alert Level 1 | . 1 . Low Security (%) 99 | 100 99 100 Level 1 . | . . . Level 2 . | . . . Level 3 . | . . . Level 4 . | . . . Level 5 . | . . . High Security . | . . . Max Security . | . . . Squads Dispatched 3 | . 3 . Investigation 2 | . 2 . Extermination . | . . . Reinforcement 1 | . 1 . Assault . | . . . Garrison . | . . . Intercept . | . . . Searches Triggered . | . . . Construction Impeded . | . . . Haulers Reinforced . | . . . Active Scanning Responses . | . . . Cargo Convoy Interrupts . | . . . Stealth | -11 -10 -10 --------- Run | Yrd Mat Min Distress Signals 1 | . 1 . Communications Jammed . | . . . Distress Signals . | . . . Times Spotted 32 | . 18 14 Peak Tracking Total 3 | . 3 3 Tactical Retreats 1 | . . 1 Traps | -11 -10 -10 ------- Run | Yrd Mat Min Traps Triggered 1 | . 1 . Indirectly . | . . . Trap Hack Attempts . | . . . Triggered . | . . . Disarmed . | . . . Reprogrammed . | . . . Reused . | . . . Traps Extracted . | . . . Installed . | . . . Triggered . | . . . Machines | -11 -10 -10 ---------- Run | Yrd Mat Min Machines Disabled 1 | . 1 . Max in Single Turn 1 | . 1 . Machines Repaired . | . . . Machines Dismantled . | . . . Machines Sabotaged . | . . . Overloaded Fab Kills . | . . . Hacking | -11 -10 -10 --------- Run | Yrd Mat Min Machines Accessed 6 | . 6 . Terminals 6 | . 6 . Fabricators . | . . . Repair Stations . | . . . Recycling Units . | . . . Scanalyzers . | . . . Garrison Access . | . . . Total Hacks 17 | . 17 . Successful 7 | . 7 . Failed 9 | . 9 . Catastrophic . | . . . Database Lockouts 1 | . 1 . Manual 12 | . 12 . Terminals 17 | . 17 . Fabricators . | . . . Repair Stations . | . . . Recycling Units . | . . . Scanalyzers . | . . . Garrison Access . | . . . Terminal Hacks 5 | . 5 . Robot Schematic 1 | . 1 . Terminal Index 1 | . 1 . Unreport Threat 1 | . 1 . Locate Traps 1 | . 1 . Transport Status 1 | . 1 . Fabricator Hacks . | . . . Repair Station Hacks . | . . . Recycling Unit Hacks . | . . . Scanalyzer . | . . . Garrison Access Hacks . | . . . Unauthorized Hacks 2 | . 2 . Terminals 2 | . 2 . Botnet 2 | . 2 . Fabricators . | . . . Repair Stations . | . . . Recycling Units . | . . . Scanalyzers . | . . . Garrison Access . | . . . Data Cores Recovered . | . . . Used . | . . . Hacking Detections 5 | . 5 . Full Trace Events 1 | . 1 . Feedback Events . | . . . Feedback Blocked . | . . . Robot Schematics Acquired 1 | . 1 . Robots Built . | . . . Authchips . | . . . Time . | . . . Total Robot Build Rating . | . . . Part Schematics Acquired . | . . . Parts Built . | . . . Authchips . | . . . Time . | . . . Total Part Build Rating . | . . . Parts Repaired . | . . . Time . | . . . Parts Recycled . | . . . Recycled Matter . | . . . Retrieved Matter . | . . . Retrieved Components . | . . . Parts Scanalyzed . | . . . Part Schematics Acquired . | . . . Parts Damaged . | . . . Bothacking | -11 -10 -10 ------------ Run | Yrd Mat Min Used RIF Installer . | . . . Robots Hacked . | . . . Non-combat . | . . . Combat . | . . . Robot Hacks Applied . | . . . Relay Couplers Released . | . . . Fabnet Peak Effective % . | . . . Robots Rewired . | . . . Allies Hacked . | . . . Hacks Repelled . | . . . Allies | -11 -10 -10 -------- Run | Yrd Mat Min Total Allies . | . . . Largest Group . | . . . Highest-Rated Group . | . . . Highest-Rated Ally . | . . . Total Orders . | . . . Ally Attacks . | . . . Total Damage . | . . . Kills . | . . . Allies Corrupted . | . . . Allies Melted . | . . . Intel | -11 -10 -10 ------- Run | Yrd Mat Min Robot Analysis Total . | . . . Derelict Logs Recovered . | . . . Drone Launches . | . . . Drone Recoveries . | . . . Exploration | -11 -10 -10 ------------- Run | Yrd Mat Min Turns Passed 2066 | 95 1004 967 Spaces Moved 914 | 44 555 315 Core 2 | 2 . . Treads 912 | 42 555 315 Legs . | . . . Wheels . | . . . Hover . | . . . Flight . | . . . Fastest Speed 50 | 50 160 160 Average Speed 183 | 155 160 227 Slowest Speed 240 | 160 160 240 Overloaded Moves . | . . . Propulsion Burnouts . | . . . Robots Hopped . | . . . Cave-ins Triggered . | . . . Exploration Rate (%) 55 | 5 98 62 Regions Visited 2 Branch Regions 1 Pre-discovered Areas . | . . . Known Exits Taken . | . . . Unknown Exits Taken 2 | 1 1 . Scrap Searched 2 | . . 2 Spaces Dug . | . . . Terrain Destroyed . | . . . Melee . | . . . Projectile . | . . . AOE . | . . . Terrain Rammed . | . . . Walls Destroyed . | . . . Machines Disabled . | . . . Actions | -11 -10 -10 --------- Run | Yrd Mat Min Total 1161 | 56 618 487 Wait 122 | . 10 112 Move 912 | 43 554 315 Hop . | . . . Pick Up 20 | 1 15 4 Fast Attach 8 | 6 2 . Attach 2 | . . 2 Detach . | . . . Swap 6 | . 4 2 Drop 7 | . 5 2 Fire 83 | 6 28 49 Melee . | . . . Ram . | . . . Kick . | . . . Crush 1 | . . 1 Escape Stasis . | . . . Rewire . | . . . Trap . | . . . Miscellaneous . | . . . Route ------- -11/Scrapyard -10/Materials (discovered 4 exits: [*Mat x3] / [*Min]) -10/Mines (discovered 1 exit: [*Mat]) History --------- Turn | Location | Event 21 | -11/Scrapyard | Discovered new exit (range 15) 96 | -11/Scrapyard | Entered Materials 214 | -10/Materials | Discovered new exit (range 16) 301 | -10/Materials | Build established: Mutant 437 | -10/Materials | Discovered new exit (range 10) 540 | -10/Materials | Central database locked down 674 | -10/Materials | Discovered new exit (range 4) 997 | -10/Materials | Discovered new exit (range 15) 1100 | -10/Materials | Entered Mines 1548 | -10/Mines | Excavation squad dispatched 1548 | -10/Mines | A large section of the Mines collapsed 1680 | -10/Mines | Core integrity fell below 50% 1798 | -10/Mines | Excavation squad dispatched 1994 | -10/Mines | Discovered new exit (range 15) 2048 | -10/Mines | Core integrity fell below 20% 2067 | -10/Mines | Destroyed by G-47 Trooper with Particle Gun Last Messages --------------- Mercenary. 01963_ S-10 Pest destroyed. 01963_ Switching to secondary target: G-34 Mercenary. 01965_ Acquired 8 matter. 01968_ S-10 Pest destroyed. 01969_ Acquired 2 matter. 01971_ Lgt. Assault Rifle destroyed. 01974_ Acquired 1 matter. 01976_ Acquired 10 matter. 01976_ G-34 Mercenary destroyed. 01977_ Acquired 2 matter. 01986_ Acquired Lgt. Assault Rifle. 01994_ EXIT=FOUND 02004_ K-01 Serf collects debris. 02041_ Lgt. Nuclear Core destroyed. 02045_ G-34 Mercenary destroyed. 02045_ Switching to secondary target: G-47 Trooper. 02057_ Lgt. Treads destroyed. Map ----- +----------------------------------------------------+ | #???????????????????"" ## ????????????????????? | | #????????????? ????"" ##?# ????????????????????? | | #????????????? ???"" ????##????????????????????? | | #????????????? ???? ??????????????????????????? | | #????????????? ??? ??????????????????????????? | | #???????????## ???? ??????????????????????????? | | #??????????## ????# ??????????????????????????? | | #??????????# ?????????????????????????????????? | | ############ ?????????????????????????????????? | | # ## #?????????????????????????????????? | | ##### # ## #?????????????????????????????????? | | ????# # ## #?????????????????????????????????? | | ????# # ## ###???????????????????????????????? | | ###?# ## ###### #???????????????????????? | | ### =**% #???????????????????????? | | ## #%######???????????????????????? | | ##=#????????????????????????????? | | ###%#????????????????????????????? | | # #### ####?????????????????????????? | | ## #### ##????????????????????????? | | ## ####### #????????????????????????? | | ###????# #????????????????????????? | | ### ##?????## ##????????????????????????? | | ??######??????# #?????????????????????????? | | ??????????????# ######????????????????????? | | ??????????###### @g[#????????????????????? | | ?????????# ##!#????????????????????? | | ?????????# ##%#????????????????????? | | ?????????# ######## ###=#????????????????????? | | ??????????????????## ##?#*#????????????????????? | | ???????????????????## #?# ???????????????????? | | ????????????????????# #?# ?????????????????? | | ????????????????????# #?# ???????????????? | | ???????????????????? ?# """ """ ?????????????? | | ??????????????????? ?# """ """ #????????????? | | ??????????????????? ?# """ """ ?????????????? | | ?????????????????? ?# ??????????????? | | ????????????????? < ?# """?"""??????????????? | | ?????????????????## ?# "????""??????????????? | | ??????????????????## ?# "????????????????????? | | ???????????????????## #?# ?????????????????????? | | ?????????????????????##??##T?????????????????????? | | ???????????????????????????#?????????????????????? | | ?????????????????????????????????????????????????? | | ?????????????????????????????????????????????????? | | ?????????????????????????????????????????????????? | | ?????????????????????????????????????????????????? | | | | | | | +----------------------------------------------------+ Best States ------------- Heat Dissipation 25 Energy Generation 14 Energy Capacity 160 Matter Stores 300 Matter Capacity 300 Sight Range 16 Terrain Scan Density 10 Evasion (%) 40 Recoil Reduction 2 Item Schematics ----------------- None Robot Schematics ------------------ G-34 Mercenary | -10/Materials | Hacked Fabricated ------------ Nothing Alien Tech Used ----------------- None Achievements -------------- None Challenges ------------ None Game ------ Seed BehemothFissionInsulator Manual? 0 Play Time 00:11:51 Cumulative 9.2 hours Start 2024.07.10 @ 06:53:35 End 2024.07.10 @ 07:02:50 Sessions 1 Manual Loads 0 Difficulty Rogue Special Mode None Game No. 7 Rogue 7 Adventurer 0 Explorer 0 Win Type - Total 0 Types 0/0/0/0/0/0/0/0/0 Lore% 20 Gallery% 20 Achievement% 24 Wizard Run 0 Options --------- Layout 1 ASCII 0 Keyboard 0 Movement Mouse Keybinds 0 Fullscreen 2 Font 24/X11 Map View 50x35 Zoom Use 0% Tactical HUD 1 Map Filters NONE Filters NONE Steam 1 RUN: 9ed82119-bef3-40c1-98bd-34d3822e93e2